[Event "December 12 Early 2023"]
[Site "https://www.chess.com"]
[Date "2023.12.12"]
[Round "5"]
[White "YurasovMat-2012"]
[Black "Clawitter, Craig"]
[Result "1-0"]
[Board "166"]
[TimeControl "180+1"]
[BlackFideId "2023105"]
[WhiteElo "2448"]
[BlackElo "2237"]
[BlackTeam "USA"]
[WhiteClock "0:00:35"]
[BlackClock "0:00:00"]

1. e4 {[%clk 0:03:00]}  e6 {[%clk 0:02:58]} 2. d3 {[%clk 0:02:55]}  d5 {[%clk 0:02:59]} 3. Nd2 {[%clk 0:02:55]}  Nf6 {[%clk 0:02:59]} 4. Ngf3 {[%clk 0:02:54]}  Bc5 {[%clk 0:03:00]} 5. e5 {[%clk 0:02:50]}  Nfd7 {[%clk 0:02:59]} 6. c3 {[%clk 0:02:49]}  Be7 {[%clk 0:02:57]} 7. g3 {[%clk 0:02:48]}  c5 {[%clk 0:02:56]} 8. Bg2 {[%clk 0:02:40]}  Nc6 {[%clk 0:02:57]} 9. d4 {[%clk 0:02:37]}  O-O {[%clk 0:02:34]} 10. O-O {[%clk 0:02:35]}  cxd4 {[%clk 0:02:35]} 11. cxd4 {[%clk 0:02:34]}  f6 {[%clk 0:02:35]} 12. exf6 {[%clk 0:02:31]}  Bxf6 {[%clk 0:02:27]} 13. Nb3 {[%clk 0:02:27]}  a5 {[%clk 0:02:25]} 14. Be3 {[%clk 0:02:24]}  a4 {[%clk 0:02:26]} 15. Nc1 {[%clk 0:02:22]}  Qb6 {[%clk 0:02:16]} 16. Ne2 {[%clk 0:02:20]}  Qxb2 {[%clk 0:02:11]} 17. Qd3 {[%clk 0:02:10]}  Qb6 {[%clk 0:01:39]} 18. Rab1 {[%clk 0:02:07]}  Qa6 {[%clk 0:01:39]} 19. Qc2 {[%clk 0:02:05]}  Nb6 {[%clk 0:01:32]} 20. Bg5 {[%clk 0:01:57]}  Nc4 {[%clk 0:01:20]} 21. Qd3 {[%clk 0:01:48]}  N4e5 {[%clk 0:00:58]} 22. Nxe5 {[%clk 0:01:21]}  Qxd3 {[%clk 0:00:37]} 23. Nxd3 {[%clk 0:01:22]}  Bxg5 {[%clk 0:00:37]} 24. Rfd1 {[%clk 0:01:19]}  Bf6 {[%clk 0:00:19]} 25. Nc5 {[%clk 0:01:14]}  Ra7 {[%clk 0:00:16]} 26. Bh3 {[%clk 0:01:09]}  e5 {[%clk 0:00:13]} 27. Bxc8 {[%clk 0:01:06]}  Rxc8 {[%clk 0:00:13]} 28. dxe5 {[%clk 0:00:57]}  Nxe5 {[%clk 0:00:13]} 29. Rxd5 {[%clk 0:00:57]}  b6 {[%clk 0:00:04]} 30. Rxb6 {[%clk 0:00:52]}  Rac7 {[%clk 0:00:05]} 31. Ne4 {[%clk 0:00:49]}  Rc2 {[%clk 0:00:04]} 32. Nf4 {[%clk 0:00:43]}  Rxa2 {[%clk 0:00:02]} 33. Nxf6+ {[%clk 0:00:40]}  gxf6 {[%clk 0:00:03]} 34. Rxf6 {[%clk 0:00:39]}  Nf3+ {[%clk 0:00:03]} 35. Kg2 {[%clk 0:00:37]}  Ne1+ {[%clk 0:00:00]} 36. Kf1 {[%clk 0:00:35]} 1-0

[Event "December 12 Early 2023"]
[Site "https://www.chess.com"]
[Date "2023.12.12"]
[Round "5"]
[White "Bolat, Inayat"]
[Black "Srivatsan Karthikeyan"]
[Result "0-1"]
[Board "167"]
[TimeControl "180+1"]
[WhiteFideId "13733125"]
[BlackFideId "25684248"]
[WhiteElo "2437"]
[BlackElo "2224"]
[WhiteTeam "KAZ"]
[BlackTeam "IND"]
[WhiteClock "0:00:00"]
[BlackClock "0:01:15"]

1. e4 {[%clk 0:03:00]}  e5 {[%clk 0:03:00]} 2. Nf3 {[%clk 0:02:59]}  Nc6 {[%clk 0:03:01]} 3. d4 {[%clk 0:02:55]}  exd4 {[%clk 0:03:01]} 4. c3 {[%clk 0:02:55]}  d5 {[%clk 0:03:00]} 5. exd5 {[%clk 0:02:54]}  Qxd5 {[%clk 0:02:59]} 6. cxd4 {[%clk 0:02:55]}  Nf6 {[%clk 0:03:00]} 7. Nc3 {[%clk 0:02:55]}  Bb4 {[%clk 0:02:58]} 8. a3 {[%clk 0:02:51]}  Bxc3+ {[%clk 0:02:58]} 9. bxc3 {[%clk 0:02:51]}  O-O {[%clk 0:02:59]} 10. Be2 {[%clk 0:02:50]}  Bg4 {[%clk 0:02:58]} 11. O-O {[%clk 0:02:50]}  Rfe8 {[%clk 0:02:58]} 12. Be3 {[%clk 0:02:44]}  Ne4 {[%clk 0:02:56]} 13. Qd3 {[%clk 0:02:43]}  Rad8 {[%clk 0:02:53]} 14. c4 {[%clk 0:02:42]}  Qd7 {[%clk 0:02:48]} 15. d5 {[%clk 0:02:43]}  Ne5 {[%clk 0:02:20]} 16. Nxe5 {[%clk 0:02:27]}  Bxe2 {[%clk 0:02:10]} 17. Qxe4 {[%clk 0:02:04]}  Bxf1 {[%clk 0:02:08]} 18. Nxd7 {[%clk 0:00:52]}  Rxe4 {[%clk 0:02:06]} 19. Nc5 {[%clk 0:00:48]}  Bxg2 {[%clk 0:02:00]} 20. Kxg2 {[%clk 0:00:37]}  Rxc4 {[%clk 0:01:53]} 21. Rd1 {[%clk 0:00:27]}  b6 {[%clk 0:01:49]} 22. Nb3 {[%clk 0:00:20]}  h6 {[%clk 0:01:47]} 23. Kf3 {[%clk 0:00:18]}  Rc3 {[%clk 0:01:45]} 24. Nc1 {[%clk 0:00:13]}  Rxa3 {[%clk 0:01:40]} 25. Ne2 {[%clk 0:00:14]}  Ra5 {[%clk 0:01:34]} 26. Nf4 {[%clk 0:00:11]}  Rb5 {[%clk 0:01:25]} 27. Ra1 {[%clk 0:00:06]}  a5 {[%clk 0:01:24]} 28. Rc1 {[%clk 0:00:07]}  Rd7 {[%clk 0:01:22]} 29. Rc4 {[%clk 0:00:06]}  Rb4 {[%clk 0:01:15]} 30. Rc6 {[%clk 0:00:00]}  a4 {[%clk 0:01:15]} 0-1

[Event "December 12 Early 2023"]
[Site "https://www.chess.com"]
[Date "2023.12.12"]
[Round "5"]
[White "Filipovic, Slobodan J"]
[Black "Vincenti, Leonardo"]
[Result "0-1"]
[Board "168"]
[TimeControl "180+1"]
[WhiteFideId "939633"]
[BlackFideId "28550820"]
[WhiteElo "2437"]
[BlackElo "2223"]
[WhiteTeam "SRB"]
[BlackTeam "ITA"]
[WhiteClock "0:00:47"]
[BlackClock "0:00:34"]

1. c4 {[%clk 0:03:00]}  e6 {[%clk 0:02:57]} 2. Nf3 {[%clk 0:03:00]}  d5 {[%clk 0:02:56]} 3. b3 {[%clk 0:03:00]}  Be7 {[%clk 0:02:48]} 4. Bb2 {[%clk 0:02:59]}  Bf6 {[%clk 0:02:42]} 5. d4 {[%clk 0:02:58]}  Ne7 {[%clk 0:02:38]} 6. Nc3 {[%clk 0:02:57]}  c6 {[%clk 0:02:35]} 7. e4 {[%clk 0:02:57]}  dxe4 {[%clk 0:02:30]} 8. Nxe4 {[%clk 0:02:58]}  Nd7 {[%clk 0:02:23]} 9. Nd6+ {[%clk 0:02:51]}  Kf8 {[%clk 0:02:21]} 10. Bd3 {[%clk 0:02:41]}  c5 {[%clk 0:02:10]} 11. O-O {[%clk 0:02:36]}  cxd4 {[%clk 0:02:10]} 12. Nxc8 {[%clk 0:02:14]}  Rxc8 {[%clk 0:02:03]} 13. Bxd4 {[%clk 0:01:49]}  Bxd4 {[%clk 0:02:02]} 14. Nxd4 {[%clk 0:01:49]}  Nc5 {[%clk 0:01:40]} 15. Bc2 {[%clk 0:01:48]}  a6 {[%clk 0:01:34]} 16. Re1 {[%clk 0:01:39]}  g6 {[%clk 0:01:09]} 17. b4 {[%clk 0:01:30]}  Nd7 {[%clk 0:01:05]} 18. Rxe6 {[%clk 0:01:20]}  Rxc4 {[%clk 0:01:05]} 19. Bb3 {[%clk 0:01:19]}  Rxd4 {[%clk 0:01:03]} 20. Qxd4 {[%clk 0:01:17]}  fxe6 {[%clk 0:01:03]} 21. Qxh8+ {[%clk 0:01:16]}  Ng8 {[%clk 0:01:01]} 22. Rd1 {[%clk 0:01:10]}  Qe7 {[%clk 0:01:00]} 23. Qd4 {[%clk 0:01:03]}  Ngf6 {[%clk 0:00:58]} 24. Qxd7 {[%clk 0:01:02]}  Nxd7 {[%clk 0:00:58]} 25. Re1 {[%clk 0:00:58]}  Qxb4 {[%clk 0:00:56]} 26. Rxe6 {[%clk 0:00:56]}  Nc5 {[%clk 0:00:39]} 27. Re3 {[%clk 0:00:49]}  Nxb3 {[%clk 0:00:38]} 28. axb3 {[%clk 0:00:50]}  b5 {[%clk 0:00:36]} 29. g3 {[%clk 0:00:50]}  a5 {[%clk 0:00:36]} 30. Rf3+ {[%clk 0:00:51]}  Kg7 {[%clk 0:00:36]} 31. h4 {[%clk 0:00:51]}  a4 {[%clk 0:00:36]} 32. bxa4 {[%clk 0:00:52]}  bxa4 {[%clk 0:00:36]} 33. Re3 {[%clk 0:00:52]}  a3 {[%clk 0:00:36]} 34. Rd3 {[%clk 0:00:50]}  a2 {[%clk 0:00:36]} 35. Rd7+ {[%clk 0:00:50]}  Kf6 {[%clk 0:00:35]} 36. Ra7 {[%clk 0:00:48]}  Qb1+ {[%clk 0:00:35]} 37. Kh2 {[%clk 0:00:49]}  a1=Q {[%clk 0:00:36]} 38. Rxh7 {[%clk 0:00:47]}  Qh1# {[%clk 0:00:34]} 0-1

[Event "December 12 Early 2023"]
[Site "https://www.chess.com"]
[Date "2023.12.12"]
[Round "5"]
[White "Petrukhina, Olga"]
[Black "Mizzi, Jack"]
[Result "1-0"]
[Board "169"]
[TimeControl "180+1"]
[WhiteFideId "13703935"]
[BlackFideId "5602521"]
[WhiteElo "2221"]
[BlackElo "2436"]
[WhiteTeam "KAZ"]
[BlackTeam "MLT"]
[WhiteClock "0:00:12"]
[BlackClock "0:00:03"]

1. d4 {[%clk 0:03:00]}  Nf6 {[%clk 0:02:59]} 2. c4 {[%clk 0:02:56]}  e6 {[%clk 0:02:59]} 3. g3 {[%clk 0:02:56]}  d5 {[%clk 0:02:58]} 4. Nf3 {[%clk 0:02:56]}  dxc4 {[%clk 0:02:58]} 5. Bg2 {[%clk 0:02:56]}  Bd7 {[%clk 0:02:58]} 6. Ne5 {[%clk 0:02:54]}  Bc6 {[%clk 0:02:58]} 7. Nxc6 {[%clk 0:02:51]}  Nxc6 {[%clk 0:02:58]} 8. e3 {[%clk 0:02:46]}  Qd7 {[%clk 0:02:58]} 9. O-O {[%clk 0:02:46]}  O-O-O {[%clk 0:02:57]} 10. Qa4 {[%clk 0:02:32]}  Nd5 {[%clk 0:02:56]} 11. Qxc4 {[%clk 0:02:31]}  h5 {[%clk 0:02:55]} 12. Nc3 {[%clk 0:02:27]}  h4 {[%clk 0:02:51]} 13. Ne4 {[%clk 0:02:17]}  Nb6 {[%clk 0:02:34]} 14. Qc2 {[%clk 0:02:13]}  Nb4 {[%clk 0:02:33]} 15. Qe2 {[%clk 0:02:09]}  f5 {[%clk 0:02:25]} 16. Ng5 {[%clk 0:02:06]}  hxg3 {[%clk 0:02:16]} 17. hxg3 {[%clk 0:02:00]}  N4d5 {[%clk 0:01:38]} 18. Bd2 {[%clk 0:01:40]}  Qe7 {[%clk 0:01:22]} 19. Nf3 {[%clk 0:01:37]}  g5 {[%clk 0:01:19]} 20. Rfc1 {[%clk 0:01:32]}  g4 {[%clk 0:01:13]} 21. Ne5 {[%clk 0:01:31]}  Qh7 {[%clk 0:01:10]} 22. a4 {[%clk 0:01:20]}  Bd6 {[%clk 0:00:40]} 23. a5 {[%clk 0:01:18]}  Qh2+ {[%clk 0:00:39]} 24. Kf1 {[%clk 0:01:17]}  Bxe5 {[%clk 0:00:15]} 25. axb6 {[%clk 0:01:10]}  Nxb6 {[%clk 0:00:08]} 26. dxe5 {[%clk 0:01:01]}  Rh3 {[%clk 0:00:08]} 27. Ba5 {[%clk 0:00:47]}  Rdh8 {[%clk 0:00:06]} 28. Qc2 {[%clk 0:00:32]}  Na8 {[%clk 0:00:03]} 29. Bxc7 {[%clk 0:00:30]}  Kd7 {[%clk 0:00:03]} 30. Rd1+ {[%clk 0:00:25]}  Ke7 {[%clk 0:00:03]} 31. Bd6+ {[%clk 0:00:23]}  Kf7 {[%clk 0:00:04]} 32. Bb4 {[%clk 0:00:24]}  Nb6 {[%clk 0:00:03]} 33. Qc7+ {[%clk 0:00:22]}  Kg6 {[%clk 0:00:04]} 34. Qd6 {[%clk 0:00:20]}  Nc4 {[%clk 0:00:02]} 35. Qxe6+ {[%clk 0:00:19]}  Kh5 {[%clk 0:00:02]} 36. Qxc4 {[%clk 0:00:19]}  f4 {[%clk 0:00:02]} 37. Qxf4 {[%clk 0:00:18]}  Re8 {[%clk 0:00:02]} 38. Qf5+ {[%clk 0:00:17]}  Kh6 {[%clk 0:00:02]} 39. Qf6+ {[%clk 0:00:16]}  Kh5 {[%clk 0:00:02]} 40. Qf5+ {[%clk 0:00:14]}  Kh6 {[%clk 0:00:02]} 41. Qxg4 {[%clk 0:00:15]}  Rh5 {[%clk 0:00:02]} 42. Qf4+ {[%clk 0:00:14]}  Kg6 {[%clk 0:00:02]} 43. Qe4+ {[%clk 0:00:13]}  Kh6 {[%clk 0:00:02]} 44. e6 {[%clk 0:00:13]}  Rf5 {[%clk 0:00:01]} 45. Rd5 {[%clk 0:00:12]}  Rxd5 {[%clk 0:00:01]} 46. Qxd5 {[%clk 0:00:12]}  Qh5 {[%clk 0:00:01]} 47. Qxh5+ {[%clk 0:00:12]}  Kxh5 {[%clk 0:00:02]} 48. e7 {[%clk 0:00:13]}  Kg6 {[%clk 0:00:02]} 49. Rd1 {[%clk 0:00:13]}  Kf7 {[%clk 0:00:02]} 50. Rd8 {[%clk 0:00:12]}  Rxe7 {[%clk 0:00:03]} 51. Bxe7 {[%clk 0:00:11]}  Kxe7 {[%clk 0:00:03]} 52. Rb8 {[%clk 0:00:12]} 1-0

[Event "December 12 Early 2023"]
[Site "https://www.chess.com"]
[Date "2023.12.12"]
[Round "5"]
[White "Bogaudinov, Rushan"]
[Black "Fernandez Hernandez, Gerardo"]
[Result "0-1"]
[Board "171"]
[TimeControl "180+1"]
[WhiteFideId "4129288"]
[BlackFideId "2207400"]
[WhiteElo "2432"]
[BlackElo "2188"]
[WhiteTeam "RUS"]
[BlackTeam "ESP"]
[WhiteClock "0:00:16"]
[BlackClock "0:00:29"]

1. d4 {[%clk 0:02:19]}  Nf6 {[%clk 0:02:57]} 2. Nf3 {[%clk 0:02:19]}  g6 {[%clk 0:02:56]} 3. e3 {[%clk 0:02:20]}  Bg7 {[%clk 0:02:56]} 4. Be2 {[%clk 0:02:21]}  O-O {[%clk 0:02:57]} 5. O-O {[%clk 0:02:21]}  d6 {[%clk 0:02:57]} 6. b3 {[%clk 0:02:22]}  Nbd7 {[%clk 0:02:56]} 7. Bb2 {[%clk 0:02:23]}  e5 {[%clk 0:02:54]} 8. c4 {[%clk 0:02:23]}  e4 {[%clk 0:02:53]} 9. Nfd2 {[%clk 0:02:23]}  Re8 {[%clk 0:02:50]} 10. Nc3 {[%clk 0:02:23]}  Nf8 {[%clk 0:02:50]} 11. b4 {[%clk 0:02:22]}  h5 {[%clk 0:02:49]} 12. a4 {[%clk 0:02:21]}  N8h7 {[%clk 0:02:43]} 13. b5 {[%clk 0:02:21]}  Bf5 {[%clk 0:02:38]} 14. a5 {[%clk 0:02:20]}  Ng4 {[%clk 0:02:37]} 15. h3 {[%clk 0:02:16]}  Qh4 {[%clk 0:02:35]} 16. hxg4 {[%clk 0:02:11]}  hxg4 {[%clk 0:02:36]} 17. Ncxe4 {[%clk 0:01:29]}  Bxe4 {[%clk 0:02:21]} 18. Nxe4 {[%clk 0:01:26]}  Rxe4 {[%clk 0:02:20]} 19. Bd3 {[%clk 0:01:25]}  Re7 {[%clk 0:01:58]} 20. e4 {[%clk 0:01:18]}  Ng5 {[%clk 0:01:42]} 21. Re1 {[%clk 0:01:13]}  g3 {[%clk 0:01:35]} 22. fxg3 {[%clk 0:01:10]}  Qxg3 {[%clk 0:01:33]} 23. Ra3 {[%clk 0:00:51]}  Nh3+ {[%clk 0:01:29]} 24. Kh1 {[%clk 0:00:49]}  Nf2+ {[%clk 0:01:27]} 25. Kg1 {[%clk 0:00:49]}  Nxd1 {[%clk 0:01:26]} 26. Rxd1 {[%clk 0:00:50]}  Qe3+ {[%clk 0:01:19]} 27. Kf1 {[%clk 0:00:48]}  Bxd4 {[%clk 0:01:10]} 28. Bxd4 {[%clk 0:00:42]}  Qxd4 {[%clk 0:01:11]} 29. Be2 {[%clk 0:00:41]}  Qc5 {[%clk 0:01:01]} 30. Rf3 {[%clk 0:00:34]}  Kg7 {[%clk 0:00:56]} 31. Rd5 {[%clk 0:00:33]}  Qb4 {[%clk 0:00:50]} 32. a6 {[%clk 0:00:27]}  bxa6 {[%clk 0:00:49]} 33. bxa6 {[%clk 0:00:28]}  Rh8 {[%clk 0:00:49]} 34. Kf2 {[%clk 0:00:27]}  Qb6+ {[%clk 0:00:47]} 35. c5 {[%clk 0:00:27]}  dxc5 {[%clk 0:00:45]} 36. Bc4 {[%clk 0:00:26]}  Qb2+ {[%clk 0:00:42]} 37. Kg3 {[%clk 0:00:26]}  Qc1 {[%clk 0:00:39]} 38. e5 {[%clk 0:00:24]}  Qg5+ {[%clk 0:00:35]} 39. Kf2 {[%clk 0:00:22]}  Qh4+ {[%clk 0:00:33]} 40. g3 {[%clk 0:00:19]}  Qxc4 {[%clk 0:00:34]} 41. Rdd3 {[%clk 0:00:18]}  Rxe5 {[%clk 0:00:33]} 42. Rc3 {[%clk 0:00:18]}  Rh2+ {[%clk 0:00:31]} 43. Kg1 {[%clk 0:00:18]}  Qe2 {[%clk 0:00:31]} 44. Rxf7+ {[%clk 0:00:16]}  Kxf7 {[%clk 0:00:31]} 45. Rf3+ {[%clk 0:00:16]}  Qxf3 {[%clk 0:00:30]} 46. Kxh2 {[%clk 0:00:16]}  Re2+ {[%clk 0:00:29]} 0-1

[Event "December 12 Early 2023"]
[Site "https://www.chess.com"]
[Date "2023.12.12"]
[Round "5"]
[White "Matthes, Aaron"]
[Black "Negron Lizarazo, Juan Sebastian"]
[Result "0-1"]
[Board "175"]
[TimeControl "180+1"]
[WhiteFideId "16227310"]
[BlackFideId "3936910"]
[WhiteElo "2411"]
[BlackElo "2124"]
[WhiteTeam "GER"]
[BlackTeam "COL"]
[WhiteClock "0:01:04"]
[BlackClock "0:00:18"]

1. Nf3 {[%clk 0:02:56]}  g6 {[%clk 0:02:57]} 2. g3 {[%clk 0:02:57]}  Nc6 {[%clk 0:02:56]} 3. Bg2 {[%clk 0:02:58]}  e5 {[%clk 0:02:56]} 4. O-O {[%clk 0:02:59]}  Bg7 {[%clk 0:02:55]} 5. c3 {[%clk 0:02:58]}  d6 {[%clk 0:02:55]} 6. d4 {[%clk 0:02:58]}  Bd7 {[%clk 0:02:54]} 7. d5 {[%clk 0:02:57]}  Nce7 {[%clk 0:02:52]} 8. e4 {[%clk 0:02:54]}  Qc8 {[%clk 0:02:34]} 9. Re1 {[%clk 0:02:40]}  Bh3 {[%clk 0:02:28]} 10. Bh1 {[%clk 0:02:39]}  h5 {[%clk 0:02:22]} 11. Ng5 {[%clk 0:02:30]}  h4 {[%clk 0:02:16]} 12. Qf3 {[%clk 0:02:28]}  Nf6 {[%clk 0:02:00]} 13. Nxh3 {[%clk 0:02:23]}  Qxh3 {[%clk 0:01:55]} 14. Bg2 {[%clk 0:02:23]}  Qd7 {[%clk 0:01:45]} 15. Bg5 {[%clk 0:02:22]}  hxg3 {[%clk 0:01:43]} 16. Bxf6 {[%clk 0:02:20]}  gxf2+ {[%clk 0:01:34]} 17. Qxf2 {[%clk 0:02:18]}  Bxf6 {[%clk 0:01:32]} 18. Qxf6 {[%clk 0:02:19]}  O-O-O {[%clk 0:01:33]} 19. Qxf7 {[%clk 0:02:11]}  Kb8 {[%clk 0:01:22]} 20. Qe6 {[%clk 0:02:11]}  Qb5 {[%clk 0:01:15]} 21. b4 {[%clk 0:01:50]}  Qb6+ {[%clk 0:01:03]} 22. Kh1 {[%clk 0:01:46]}  Qf2 {[%clk 0:00:54]} 23. Na3 {[%clk 0:01:35]}  Nf5 {[%clk 0:00:27]} 24. Qf6 {[%clk 0:01:04]}  Ng3# {[%clk 0:00:18]} 0-1

[Event "December 12 Early 2023"]
[Site "https://www.chess.com"]
[Date "2023.12.12"]
[Round "5"]
[White "Ovezdurdyyeva, Jemal"]
[Black "Tilahun , Abel Mathewos"]
[Result "1-0"]
[Board "176"]
[TimeControl "180+1"]
[WhiteFideId "14001888"]
[BlackFideId "15702391"]
[WhiteElo "2409"]
[BlackElo "2082"]
[WhiteTeam "TKM"]
[BlackTeam "ETH"]
[WhiteClock "0:00:51"]
[BlackClock "0:00:06"]

1. e4 {[%clk 0:03:00]}  e6 {[%clk 0:02:59]} 2. d4 {[%clk 0:03:00]}  d5 {[%clk 0:03:00]} 3. Nd2 {[%clk 0:03:00]}  Nc6 {[%clk 0:02:59]} 4. Ngf3 {[%clk 0:02:58]}  Nf6 {[%clk 0:02:59]} 5. exd5 {[%clk 0:02:53]}  exd5 {[%clk 0:02:59]} 6. Bd3 {[%clk 0:02:53]}  Nb4 {[%clk 0:02:57]} 7. Bb5+ {[%clk 0:02:48]}  Bd7 {[%clk 0:02:50]} 8. Bxd7+ {[%clk 0:02:45]}  Qxd7 {[%clk 0:02:47]} 9. O-O {[%clk 0:02:46]}  Be7 {[%clk 0:02:46]} 10. c4 {[%clk 0:02:37]}  O-O {[%clk 0:02:42]} 11. a3 {[%clk 0:02:36]}  Nc6 {[%clk 0:02:40]} 12. c5 {[%clk 0:02:35]}  Ne4 {[%clk 0:02:37]} 13. b4 {[%clk 0:02:33]}  Bf6 {[%clk 0:02:28]} 14. Nb3 {[%clk 0:02:29]}  Rfe8 {[%clk 0:02:16]} 15. b5 {[%clk 0:02:26]}  Ne7 {[%clk 0:02:16]} 16. a4 {[%clk 0:02:24]}  c6 {[%clk 0:02:07]} 17. Qd3 {[%clk 0:02:18]}  Ng6 {[%clk 0:02:00]} 18. Be3 {[%clk 0:02:08]}  h5 {[%clk 0:01:39]} 19. Nfd2 {[%clk 0:02:07]}  h4 {[%clk 0:01:34]} 20. h3 {[%clk 0:02:02]}  Re7 {[%clk 0:01:17]} 21. Nxe4 {[%clk 0:02:00]}  Rxe4 {[%clk 0:01:15]} 22. Rfe1 {[%clk 0:01:55]}  Rae8 {[%clk 0:01:14]} 23. Bd2 {[%clk 0:01:32]}  Qf5 {[%clk 0:01:05]} 24. Rxe4 {[%clk 0:01:30]}  Rxe4 {[%clk 0:00:59]} 25. Qf3 {[%clk 0:01:26]}  Qe6 {[%clk 0:00:56]} 26. bxc6 {[%clk 0:01:21]}  bxc6 {[%clk 0:00:56]} 27. Be3 {[%clk 0:01:21]}  Ne7 {[%clk 0:00:48]} 28. Nd2 {[%clk 0:01:21]}  Rxd4 {[%clk 0:00:41]} 29. Bxd4 {[%clk 0:01:20]}  Bxd4 {[%clk 0:00:40]} 30. Rc1 {[%clk 0:01:16]}  Be5 {[%clk 0:00:31]} 31. Qd3 {[%clk 0:01:04]}  Bc7 {[%clk 0:00:26]} 32. Nf3 {[%clk 0:01:04]}  Qf6 {[%clk 0:00:21]} 33. Rb1 {[%clk 0:01:01]}  Ng6 {[%clk 0:00:16]} 34. Rb7 {[%clk 0:00:54]}  Qf4 {[%clk 0:00:15]} 35. Qe3 {[%clk 0:00:52]}  Qxe3 {[%clk 0:00:13]} 36. fxe3 {[%clk 0:00:52]}  Be5 {[%clk 0:00:11]} 37. Nxe5 {[%clk 0:00:51]}  Nxe5 {[%clk 0:00:11]} 38. Rxa7 {[%clk 0:00:52]}  Nd3 {[%clk 0:00:11]} 39. Rc7 {[%clk 0:00:50]}  Ne5 {[%clk 0:00:09]} 40. a5 {[%clk 0:00:50]}  Kf8 {[%clk 0:00:08]} 41. a6 {[%clk 0:00:50]}  Ke8 {[%clk 0:00:09]} 42. a7 {[%clk 0:00:50]}  Kd8 {[%clk 0:00:10]} 43. Rb7 {[%clk 0:00:50]}  Nd3 {[%clk 0:00:06]} 44. a8=Q# {[%clk 0:00:51]} 1-0

[Event "December 12 Early 2023"]
[Site "https://www.chess.com"]
[Date "2023.12.12"]
[Round "5"]
[White "Perez Cruz, Adianet"]
[Black "Recuero Guerra, Javier"]
[Result "0-1"]
[Board "178"]
[TimeControl "180+1"]
[WhiteFideId "3510115"]
[BlackFideId "2254085"]
[WhiteElo "2052"]
[BlackElo "2405"]
[WhiteTeam "CUB"]
[BlackTeam "ESP"]
[WhiteClock "0:01:57"]
[BlackClock "0:01:35"]

1. d4 {[%clk 0:03:00]}  Nf6 {[%clk 0:02:59]} 2. Bg5 {[%clk 0:03:00]}  e6 {[%clk 0:02:54]} 3. Bxf6 {[%clk 0:02:59]}  Qxf6 {[%clk 0:02:53]} 4. e3 {[%clk 0:02:59]}  d5 {[%clk 0:02:53]} 5. c4 {[%clk 0:02:59]}  Bb4+ {[%clk 0:02:40]} 6. Nc3 {[%clk 0:02:59]}  O-O {[%clk 0:02:41]} 7. Nf3 {[%clk 0:02:58]}  c5 {[%clk 0:02:40]} 8. cxd5 {[%clk 0:02:58]}  exd5 {[%clk 0:02:39]} 9. Be2 {[%clk 0:02:56]}  b6 {[%clk 0:02:23]} 10. O-O {[%clk 0:02:53]}  Bxc3 {[%clk 0:02:17]} 11. bxc3 {[%clk 0:02:54]}  Bb7 {[%clk 0:02:16]} 12. Ne5 {[%clk 0:02:48]}  Qd6 {[%clk 0:02:13]} 13. Bf3 {[%clk 0:02:45]}  Nd7 {[%clk 0:02:12]} 14. Nxd7 {[%clk 0:02:44]}  Qxd7 {[%clk 0:02:11]} 15. a4 {[%clk 0:02:42]}  Rac8 {[%clk 0:01:59]} 16. a5 {[%clk 0:02:42]}  Ba6 {[%clk 0:01:59]} 17. Re1 {[%clk 0:02:42]}  b5 {[%clk 0:01:58]} 18. h3 {[%clk 0:02:34]}  b4 {[%clk 0:01:56]} 19. cxb4 {[%clk 0:02:32]}  cxb4 {[%clk 0:01:56]} 20. Qb3 {[%clk 0:02:30]}  Rc4 {[%clk 0:01:49]} 21. Be2 {[%clk 0:02:17]}  Rb8 {[%clk 0:01:43]} 22. Rac1 {[%clk 0:01:57]}  Rxc1 {[%clk 0:01:35]} 0-1

[Event "December 12 Early 2023"]
[Site "https://www.chess.com"]
[Date "2023.12.12"]
[Round "5"]
[White "Donskov, Anatoly"]
[Black "Saim, Mohamed Ilias"]
[Result "1-0"]
[Board "179"]
[TimeControl "180+1"]
[WhiteFideId "24143413"]
[BlackFideId "7900465"]
[WhiteElo "2403"]
[BlackElo "2050"]
[WhiteTeam "RUS"]
[BlackTeam "ALG"]
[WhiteClock "0:00:57"]
[BlackClock "0:00:18"]

1. e4 {[%clk 0:02:58]}  c6 {[%clk 0:02:59]} 2. d4 {[%clk 0:02:58]}  d5 {[%clk 0:03:00]} 3. Nc3 {[%clk 0:02:59]}  a6 {[%clk 0:03:00]} 4. h3 {[%clk 0:02:53]}  b5 {[%clk 0:02:58]} 5. Bd3 {[%clk 0:02:50]}  dxe4 {[%clk 0:02:57]} 6. Nxe4 {[%clk 0:02:50]}  Qxd4 {[%clk 0:02:50]} 7. Nf3 {[%clk 0:02:50]}  Qd8 {[%clk 0:02:50]} 8. a4 {[%clk 0:02:48]}  Bb7 {[%clk 0:02:41]} 9. Nc5 {[%clk 0:02:41]}  Qc7 {[%clk 0:02:12]} 10. O-O {[%clk 0:02:31]}  Nf6 {[%clk 0:02:11]} 11. Ng5 {[%clk 0:02:13]}  e6 {[%clk 0:02:04]} 12. Ngxe6 {[%clk 0:02:13]}  fxe6 {[%clk 0:02:03]} 13. Nxe6 {[%clk 0:02:14]}  Qd6 {[%clk 0:01:51]} 14. Re1 {[%clk 0:02:05]}  Kf7 {[%clk 0:01:51]} 15. Bf4 {[%clk 0:01:52]}  Qxe6 {[%clk 0:01:37]} 16. Rxe6 {[%clk 0:01:51]}  Kxe6 {[%clk 0:01:38]} 17. Qe2+ {[%clk 0:01:37]}  Kf7 {[%clk 0:01:34]} 18. Re1 {[%clk 0:01:37]}  Bc8 {[%clk 0:01:16]} 19. g4 {[%clk 0:01:30]}  Bd7 {[%clk 0:01:10]} 20. g5 {[%clk 0:01:21]}  Nd5 {[%clk 0:01:09]} 21. Qh5+ {[%clk 0:01:00]}  g6 {[%clk 0:00:53]} 22. Bxg6+ {[%clk 0:00:58]}  hxg6 {[%clk 0:00:54]} 23. Qxh8 {[%clk 0:00:58]}  Bg7 {[%clk 0:00:46]} 24. Qd8 {[%clk 0:00:58]}  Nxf4 {[%clk 0:00:18]} 25. Re7# {[%clk 0:00:57]} 1-0